[Event "Titled Tuesday Blitz June 28 Late 2022"]
[White "Curtis, John"]
[Black "Kapitsyn, Mark"]
[WhiteFideId "3200256"]
[BlackFideId "4116240"]
[WhiteElo "2203"]
[BlackElo "2260"]
[Result "1-0"]
[Round "10"]
[TimeControl "180+1"]
[Date "2022.06.29"]
[WhiteClock "0:00:17"]
[BlackClock "0:00:06"]

1. e4 {[%clk 0:03:00]}  c5 {[%clk 0:02:57]} 2. Nf3 {[%clk 0:02:59]}  e6 {[%clk 0:02:57]} 3. d4 {[%clk 0:02:58]}  cxd4 {[%clk 0:02:58]} 4. Nxd4 {[%clk 0:02:58]}  Nc6 {[%clk 0:02:58]} 5. Nc3 {[%clk 0:02:57]}  Qc7 {[%clk 0:02:58]} 6. Nxc6 {[%clk 0:02:54]}  bxc6 {[%clk 0:02:59]} 7. Bd3 {[%clk 0:02:51]}  Nf6 {[%clk 0:02:58]} 8. f4 {[%clk 0:02:45]}  h5 {[%clk 0:02:47]} 9. e5 {[%clk 0:02:41]}  Nd5 {[%clk 0:02:31]} 10. Nxd5 {[%clk 0:02:41]}  cxd5 {[%clk 0:02:31]} 11. O-O {[%clk 0:02:40]}  Bc5+ {[%clk 0:02:28]} 12. Kh1 {[%clk 0:02:40]}  d6 {[%clk 0:02:26]} 13. exd6 {[%clk 0:02:31]}  Bxd6 {[%clk 0:02:25]} 14. Bb5+ {[%clk 0:02:19]}  Bd7 {[%clk 0:02:10]} 15. Bxd7+ {[%clk 0:02:17]}  Qxd7 {[%clk 0:02:11]} 16. f5 {[%clk 0:02:15]}  Bc7 {[%clk 0:01:28]} 17. fxe6 {[%clk 0:02:13]}  fxe6 {[%clk 0:01:29]} 18. Bg5 {[%clk 0:02:00]}  Qd6 {[%clk 0:01:19]} 19. Bf4 {[%clk 0:01:55]}  e5 {[%clk 0:01:18]} 20. Bxe5 {[%clk 0:01:53]}  Qxe5 {[%clk 0:01:18]} 21. Re1 {[%clk 0:01:53]}  O-O-O {[%clk 0:01:11]} 22. Rxe5 {[%clk 0:01:53]}  Bxe5 {[%clk 0:01:11]} 23. Qe2 {[%clk 0:01:38]}  Rhe8 {[%clk 0:00:43]} 24. Qa6+ {[%clk 0:01:23]}  Kb8 {[%clk 0:00:43]} 25. Re1 {[%clk 0:01:17]}  h4 {[%clk 0:00:26]} 26. Qb5+ {[%clk 0:01:03]}  Kc7 {[%clk 0:00:26]} 27. Qc5+ {[%clk 0:01:02]}  Kb7 {[%clk 0:00:22]} 28. Rd1 {[%clk 0:00:51]}  h3 {[%clk 0:00:18]} 29. gxh3 {[%clk 0:00:43]}  Bc7 {[%clk 0:00:13]} 30. Qb5+ {[%clk 0:00:34]}  Bb6 {[%clk 0:00:13]} 31. Rxd5 {[%clk 0:00:33]}  Re1+ {[%clk 0:00:12]} 32. Kg2 {[%clk 0:00:33]}  Rg1+ {[%clk 0:00:12]} 33. Kf3 {[%clk 0:00:33]}  Rf8+ {[%clk 0:00:13]} 34. Ke2 {[%clk 0:00:20]}  Rf2+ {[%clk 0:00:13]} 35. Kd3 {[%clk 0:00:18]}  Rd1+ {[%clk 0:00:13]} 36. Kc3 {[%clk 0:00:18]}  Rf3+ {[%clk 0:00:12]} 37. Rd3 {[%clk 0:00:17]}  Rdxd3+ {[%clk 0:00:09]} 38. cxd3 {[%clk 0:00:17]}  Rf7 {[%clk 0:00:06]} 39. Qd5+ {[%clk 0:00:17]}  Ka6 {[%clk 0:00:06]} 40. Qxf7 {[%clk 0:00:17]}  Kb5 {[%clk 0:00:07]} 41. Qc4+ {[%clk 0:00:16]}  Ka5 {[%clk 0:00:07]} 42. b4+ {[%clk 0:00:16]}  Ka4 {[%clk 0:00:07]} 43. Qa6+ {[%clk 0:00:16]}  Ba5 {[%clk 0:00:06]} 44. Qxa5# {[%clk 0:00:17]} 1-0


[Site "https://www.chess.com"]

[Event "Titled Tuesday Blitz June 28 Late 2022"]
[White "Dubov, Daniil"]
[Black "Djokic, Mihailo"]
[WhiteFideId "24126055"]
[BlackFideId "976440"]
[WhiteElo "2791"]
[BlackElo "2255"]
[Result "1-0"]
[Round "10"]
[TimeControl "180+1"]
[Date "2022.06.28"]
[WhiteClock "0:02:48"]
[BlackClock "0:02:37"]

1. e4 {[%clk 0:03:00]}  c5 {[%clk 0:03:00]} 2. Nf3 {[%clk 0:02:58]}  d6 {[%clk 0:03:01]} 3. d4 {[%clk 0:02:58]}  cxd4 {[%clk 0:03:02]} 4. Nxd4 {[%clk 0:02:59]}  Nf6 {[%clk 0:03:03]} 5. Nc3 {[%clk 0:02:59]}  g6 {[%clk 0:03:04]} 6. Bc4 {[%clk 0:02:56]}  Bg7 {[%clk 0:03:04]} 7. O-O {[%clk 0:02:56]}  O-O {[%clk 0:03:04]} 8. Re1 {[%clk 0:02:57]}  Nc6 {[%clk 0:03:04]} 9. h3 {[%clk 0:02:57]}  Bd7 {[%clk 0:03:02]} 10. Nf3 {[%clk 0:02:56]}  Rc8 {[%clk 0:03:01]} 11. Bb3 {[%clk 0:02:54]}  a6 {[%clk 0:03:01]} 12. Bg5 {[%clk 0:02:53]}  b5 {[%clk 0:03:01]} 13. Qd2 {[%clk 0:02:52]}  Na5 {[%clk 0:03:00]} 14. Rad1 {[%clk 0:02:50]}  Qe8 {[%clk 0:02:41]} 15. e5 {[%clk 0:02:48]}  dxe5 {[%clk 0:02:37]} 16. Bxf6 {[%clk 0:02:48]} 1-0


[Site "https://www.chess.com"]

[Event "Titled Tuesday Blitz June 28 Late 2022"]
[White "Flynn, Jacob"]
[Black "Brodowski, Piotr"]
[WhiteFideId "2509393"]
[BlackFideId "1124480"]
[WhiteElo "1896"]
[BlackElo "2431"]
[Result "0-1"]
[Round "10"]
[TimeControl "180+1"]
[Date "2022.06.29"]
[WhiteClock "0:00:05"]
[BlackClock "0:01:27"]

1. d4 {[%clk 0:03:00]}  e5 {[%clk 0:02:44]} 2. dxe5 {[%clk 0:02:39]}  d6 {[%clk 0:02:44]} 3. exd6 {[%clk 0:02:38]}  Bxd6 {[%clk 0:02:44]} 4. Nf3 {[%clk 0:02:37]}  Ke7 {[%clk 0:02:43]} 5. Nc3 {[%clk 0:02:35]}  Nf6 {[%clk 0:02:41]} 6. Bg5 {[%clk 0:02:33]}  c6 {[%clk 0:02:38]} 7. Ne4 {[%clk 0:02:28]}  Re8 {[%clk 0:02:35]} 8. Bxf6+ {[%clk 0:02:24]}  gxf6 {[%clk 0:02:35]} 9. Qxd6+ {[%clk 0:02:23]}  Qxd6 {[%clk 0:02:35]} 10. Nxd6 {[%clk 0:02:24]}  Kxd6 {[%clk 0:02:35]} 11. O-O-O+ {[%clk 0:02:25]}  Kc7 {[%clk 0:02:35]} 12. e3 {[%clk 0:02:24]}  Be6 {[%clk 0:02:34]} 13. Bd3 {[%clk 0:02:19]}  h6 {[%clk 0:02:32]} 14. Nd4 {[%clk 0:02:19]}  Nd7 {[%clk 0:02:25]} 15. h3 {[%clk 0:01:51]}  a5 {[%clk 0:02:16]} 16. g4 {[%clk 0:01:51]}  Nc5 {[%clk 0:02:11]} 17. a3 {[%clk 0:01:39]}  b5 {[%clk 0:02:04]} 18. b3 {[%clk 0:01:34]}  a4 {[%clk 0:01:59]} 19. b4 {[%clk 0:01:34]}  Nd7 {[%clk 0:01:58]} 20. Be2 {[%clk 0:01:26]}  Nb6 {[%clk 0:01:54]} 21. Bf3 {[%clk 0:01:10]}  Bd7 {[%clk 0:01:52]} 22. Rd3 {[%clk 0:01:02]}  Re5 {[%clk 0:01:46]} 23. Rhd1 {[%clk 0:01:01]}  Rae8 {[%clk 0:01:45]} 24. Bg2 {[%clk 0:00:43]}  R8e7 {[%clk 0:01:43]} 25. Rc3 {[%clk 0:00:28]}  Nc4 {[%clk 0:01:35]} 26. Bf1 {[%clk 0:00:29]}  Nd6 {[%clk 0:01:35]} 27. Kd2 {[%clk 0:00:13]}  Ne4+ {[%clk 0:01:35]} 28. Kd3 {[%clk 0:00:13]}  Nxf2+ {[%clk 0:01:33]} 29. Ke2 {[%clk 0:00:14]}  Nxd1 {[%clk 0:01:31]} 30. Kxd1 {[%clk 0:00:15]}  Kb6 {[%clk 0:01:29]} 31. Bg2 {[%clk 0:00:14]}  Rxe3 {[%clk 0:01:29]} 32. Rxe3 {[%clk 0:00:04]}  Rxe3 {[%clk 0:01:29]} 33. Kd2 {[%clk 0:00:05]}  Rg3 {[%clk 0:01:28]} 34. Be4 {[%clk 0:00:05]}  Rxh3 {[%clk 0:01:28]} 35. Nf5 {[%clk 0:00:05]}  Bxf5 {[%clk 0:01:27]} 0-1


[Site "https://www.chess.com"]

[Event "Titled Tuesday Blitz June 28 Late 2022"]
[White "Gaehwiler, Gabriel"]
[Black "Mickiewicz, Piotr"]
[WhiteFideId "1314530"]
[BlackFideId "1114891"]
[WhiteElo "2383"]
[BlackElo "2209"]
[Result "1-0"]
[Round "10"]
[TimeControl "180+1"]
[Date "2022.06.28"]
[WhiteClock "0:00:07"]
[BlackClock "0:00:07"]

1. Nf3 {[%clk 0:03:00]}  g6 {[%clk 0:02:58]} 2. c4 {[%clk 0:03:01]}  Bg7 {[%clk 0:02:59]} 3. g3 {[%clk 0:03:02]}  c5 {[%clk 0:02:58]} 4. Bg2 {[%clk 0:03:02]}  Nc6 {[%clk 0:02:58]} 5. O-O {[%clk 0:03:02]}  d6 {[%clk 0:02:58]} 6. Na3 {[%clk 0:03:03]}  Nf6 {[%clk 0:02:56]} 7. Nc2 {[%clk 0:03:02]}  O-O {[%clk 0:02:55]} 8. d4 {[%clk 0:03:02]}  Bf5 {[%clk 0:02:49]} 9. d5 {[%clk 0:03:02]}  Na5 {[%clk 0:02:49]} 10. Ne3 {[%clk 0:03:02]}  Be4 {[%clk 0:02:47]} 11. Bd2 {[%clk 0:03:02]}  Nd7 {[%clk 0:02:36]} 12. Qa4 {[%clk 0:02:57]}  b6 {[%clk 0:02:36]} 13. Bc1 {[%clk 0:02:46]}  a6 {[%clk 0:02:28]} 14. Nd2 {[%clk 0:02:44]}  Bxg2 {[%clk 0:02:27]} 15. Kxg2 {[%clk 0:02:44]}  b5 {[%clk 0:02:27]} 16. Qc2 {[%clk 0:02:40]}  Ne5 {[%clk 0:02:23]} 17. cxb5 {[%clk 0:02:34]}  axb5 {[%clk 0:02:22]} 18. Rb1 {[%clk 0:02:34]}  b4 {[%clk 0:02:22]} 19. b3 {[%clk 0:02:33]}  Nb7 {[%clk 0:02:12]} 20. Ndc4 {[%clk 0:02:27]}  Nd7 {[%clk 0:02:08]} 21. h4 {[%clk 0:02:22]}  f5 {[%clk 0:02:06]} 22. h5 {[%clk 0:02:09]}  Nf6 {[%clk 0:02:04]} 23. hxg6 {[%clk 0:02:08]}  hxg6 {[%clk 0:02:05]} 24. Rh1 {[%clk 0:02:08]}  Ne4 {[%clk 0:02:01]} 25. a4 {[%clk 0:01:56]}  bxa3 {[%clk 0:02:00]} 26. Bxa3 {[%clk 0:01:55]}  Nc3 {[%clk 0:01:36]} 27. Rbe1 {[%clk 0:01:42]}  Nb5 {[%clk 0:01:26]} 28. Bb2 {[%clk 0:01:41]}  Nd4 {[%clk 0:01:26]} 29. Qd3 {[%clk 0:01:37]}  Ra2 {[%clk 0:01:25]} 30. Ra1 {[%clk 0:01:35]}  Qa8 {[%clk 0:01:23]} 31. Nd2 {[%clk 0:01:03]}  Rxb2 {[%clk 0:01:17]} 32. Rxa8 {[%clk 0:01:01]}  Rxa8 {[%clk 0:01:18]} 33. Nec4 {[%clk 0:01:00]}  Rba2 {[%clk 0:01:09]} 34. e3 {[%clk 0:00:56]}  Nc2 {[%clk 0:01:00]} 35. Nb6 {[%clk 0:00:45]}  Nb4 {[%clk 0:00:59]} 36. Qb5 {[%clk 0:00:45]}  Rf8 {[%clk 0:00:43]} 37. Nf3 {[%clk 0:00:32]}  Bf6 {[%clk 0:00:30]} 38. Qd7 {[%clk 0:00:31]}  Nd3 {[%clk 0:00:26]} 39. Rf1 {[%clk 0:00:21]}  Na5 {[%clk 0:00:26]} 40. Qe6+ {[%clk 0:00:21]}  Kg7 {[%clk 0:00:25]} 41. Nd7 {[%clk 0:00:21]}  Rf7 {[%clk 0:00:24]} 42. Nxf6 {[%clk 0:00:20]}  exf6 {[%clk 0:00:19]} 43. Qxd6 {[%clk 0:00:20]}  Nxb3 {[%clk 0:00:19]} 44. Qb6 {[%clk 0:00:20]}  c4 {[%clk 0:00:18]} 45. d6 {[%clk 0:00:20]}  Nd2 {[%clk 0:00:17]} 46. Rd1 {[%clk 0:00:14]}  Ne4 {[%clk 0:00:16]} 47. Rf1 {[%clk 0:00:13]}  Ndxf2 {[%clk 0:00:16]} 48. Qb1 {[%clk 0:00:13]}  Re2 {[%clk 0:00:13]} 49. Re1 {[%clk 0:00:11]}  Nc3 {[%clk 0:00:07]} 50. Qa1 {[%clk 0:00:08]}  Nd3+ {[%clk 0:00:07]} 51. Rxe2 {[%clk 0:00:08]}  Nxe2 {[%clk 0:00:08]} 52. Qa2 {[%clk 0:00:06]}  c3 {[%clk 0:00:08]} 53. Qxe2 {[%clk 0:00:06]}  Nb4 {[%clk 0:00:07]} 54. Ne1 {[%clk 0:00:05]}  c2 {[%clk 0:00:08]} 55. Nxc2 {[%clk 0:00:05]}  Nd5 {[%clk 0:00:08]} 56. Qd3 {[%clk 0:00:06]}  Nb6 {[%clk 0:00:07]} 57. Nd4 {[%clk 0:00:06]}  Nd7 {[%clk 0:00:07]} 58. Ne6+ {[%clk 0:00:07]}  Kg8 {[%clk 0:00:07]} 59. Qd5 {[%clk 0:00:07]} 1-0


[Site "https://www.chess.com"]

[Event "Titled Tuesday Blitz June 28 Late 2022"]
[White "Hakobyan, Aram"]
[Black "Yoo, Christopher Woojin"]
[WhiteFideId "13306677"]
[BlackFideId "30909694"]
[WhiteElo "2557"]
[BlackElo "2105"]
[Result "0-1"]
[Round "10"]
[TimeControl "180+1"]
[Date "2022.06.28"]
[WhiteClock "0:00:03"]
[BlackClock "0:00:07"]

1. e4 {[%clk 0:03:00]}  e6 {[%clk 0:02:58]} 2. d4 {[%clk 0:03:00]}  d5 {[%clk 0:02:58]} 3. Nc3 {[%clk 0:03:00]}  Nf6 {[%clk 0:02:58]} 4. Bg5 {[%clk 0:03:00]}  Be7 {[%clk 0:02:58]} 5. e5 {[%clk 0:02:55]}  Nfd7 {[%clk 0:02:59]} 6. h4 {[%clk 0:02:52]}  Bxg5 {[%clk 0:02:58]} 7. hxg5 {[%clk 0:02:53]}  Qxg5 {[%clk 0:02:58]} 8. Nh3 {[%clk 0:02:53]}  Qh4 {[%clk 0:02:59]} 9. g3 {[%clk 0:02:42]}  Qe7 {[%clk 0:02:58]} 10. Nf4 {[%clk 0:02:36]}  Nc6 {[%clk 0:02:26]} 11. Nb5 {[%clk 0:02:29]}  Nb6 {[%clk 0:02:23]} 12. Nh5 {[%clk 0:02:23]}  a6 {[%clk 0:02:04]} 13. Nc3 {[%clk 0:02:14]}  Qb4 {[%clk 0:02:02]} 14. Rh4 {[%clk 0:01:29]}  Qxb2 {[%clk 0:01:53]} 15. Ne2 {[%clk 0:01:29]}  Nb4 {[%clk 0:01:46]} 16. Rc1 {[%clk 0:01:29]}  Bd7 {[%clk 0:01:27]} 17. Nxg7+ {[%clk 0:01:16]}  Kd8 {[%clk 0:01:23]} 18. a3 {[%clk 0:00:47]}  Qxa3 {[%clk 0:01:19]} 19. c3 {[%clk 0:00:43]}  Ba4 {[%clk 0:00:48]} 20. Qd2 {[%clk 0:00:43]}  Nc6 {[%clk 0:00:48]} 21. Nf4 {[%clk 0:00:38]}  Na5 {[%clk 0:00:42]} 22. Nfxe6+ {[%clk 0:00:17]}  fxe6 {[%clk 0:00:40]} 23. Nxe6+ {[%clk 0:00:18]}  Kc8 {[%clk 0:00:40]} 24. Nc5 {[%clk 0:00:18]}  Nb3 {[%clk 0:00:30]} 25. Nxb3 {[%clk 0:00:18]}  Qxb3 {[%clk 0:00:30]} 26. Bd3 {[%clk 0:00:15]}  Nc4 {[%clk 0:00:28]} 27. Bxc4 {[%clk 0:00:11]}  Qxc4 {[%clk 0:00:25]} 28. f4 {[%clk 0:00:11]}  Bd7 {[%clk 0:00:23]} 29. g4 {[%clk 0:00:10]}  Rg8 {[%clk 0:00:21]} 30. f5 {[%clk 0:00:10]}  a5 {[%clk 0:00:13]} 31. e6 {[%clk 0:00:10]}  Bxe6 {[%clk 0:00:12]} 32. fxe6 {[%clk 0:00:11]}  Ra6 {[%clk 0:00:12]} 33. Rh6 {[%clk 0:00:11]}  Re8 {[%clk 0:00:10]} 34. Qe3 {[%clk 0:00:05]}  a4 {[%clk 0:00:11]} 35. Kf2 {[%clk 0:00:05]}  a3 {[%clk 0:00:10]} 36. g5 {[%clk 0:00:02]}  a2 {[%clk 0:00:10]} 37. Qh3 {[%clk 0:00:01]}  a1=Q {[%clk 0:00:09]} 38. e7+ {[%clk 0:00:01]}  Kb8 {[%clk 0:00:09]} 39. Rxa1 {[%clk 0:00:02]}  Rxa1 {[%clk 0:00:10]} 40. Qd7 {[%clk 0:00:02]}  Qf1+ {[%clk 0:00:09]} 41. Kg3 {[%clk 0:00:03]}  Qg1+ {[%clk 0:00:09]} 42. Kh4 {[%clk 0:00:04]}  Qe1+ {[%clk 0:00:08]} 43. Kh5 {[%clk 0:00:04]}  Qe2+ {[%clk 0:00:08]} 44. Qg4 {[%clk 0:00:03]}  Rh1# {[%clk 0:00:07]} 0-1


[Site "https://www.chess.com"]

[Event "Titled Tuesday Blitz June 28 Late 2022"]
[White "Hansen, Eric"]
[Black "Bjelobrk, Igor"]
[WhiteFideId "2606771"]
[BlackFideId "4300726"]
[WhiteElo "2568"]
[BlackElo "2335"]
[Result "0-1"]
[Round "10"]
[TimeControl "180+1"]
[Date "2022.06.28"]
[WhiteClock "0:00:01"]
[BlackClock "0:00:02"]

1. e4 {[%clk 0:03:00]}  e5 {[%clk 0:02:57]} 2. Nf3 {[%clk 0:03:01]}  Nc6 {[%clk 0:02:56]} 3. Bb5 {[%clk 0:03:01]}  a6 {[%clk 0:02:56]} 4. Ba4 {[%clk 0:03:02]}  Bc5 {[%clk 0:02:55]} 5. c3 {[%clk 0:03:02]}  Nge7 {[%clk 0:02:54]} 6. d4 {[%clk 0:03:02]}  Ba7 {[%clk 0:02:54]} 7. O-O {[%clk 0:03:01]}  Ng6 {[%clk 0:02:53]} 8. Bg5 {[%clk 0:02:54]}  f6 {[%clk 0:02:53]} 9. Be3 {[%clk 0:02:55]}  O-O {[%clk 0:02:51]} 10. Nbd2 {[%clk 0:02:52]}  d6 {[%clk 0:02:50]} 11. h3 {[%clk 0:02:50]}  Kh8 {[%clk 0:02:49]} 12. Re1 {[%clk 0:02:50]}  Bd7 {[%clk 0:02:47]} 13. Bc2 {[%clk 0:02:47]}  a5 {[%clk 0:02:35]} 14. a3 {[%clk 0:02:46]}  Qe8 {[%clk 0:02:29]} 15. Nf1 {[%clk 0:02:38]}  a4 {[%clk 0:02:17]} 16. Ng3 {[%clk 0:02:36]}  b5 {[%clk 0:02:15]} 17. Nf5 {[%clk 0:02:22]}  Na5 {[%clk 0:02:12]} 18. Nd2 {[%clk 0:02:22]}  Ne7 {[%clk 0:02:04]} 19. Ng3 {[%clk 0:02:15]}  Nec6 {[%clk 0:02:01]} 20. Ne2 {[%clk 0:02:06]}  Qf7 {[%clk 0:01:54]} 21. Bd3 {[%clk 0:02:04]}  Rfb8 {[%clk 0:01:53]} 22. d5 {[%clk 0:01:55]}  Ne7 {[%clk 0:01:51]} 23. Bxa7 {[%clk 0:01:55]}  Rxa7 {[%clk 0:01:52]} 24. f4 {[%clk 0:01:55]}  c6 {[%clk 0:01:43]} 25. dxc6 {[%clk 0:01:49]}  Bxc6 {[%clk 0:01:44]} 26. Rf1 {[%clk 0:01:49]}  Rc7 {[%clk 0:01:36]} 27. Nf3 {[%clk 0:01:45]}  Qe6 {[%clk 0:01:36]} 28. Qe1 {[%clk 0:01:35]}  Nc4 {[%clk 0:01:35]} 29. Rb1 {[%clk 0:01:33]}  Rcb7 {[%clk 0:01:19]} 30. Qg3 {[%clk 0:01:19]}  Rb6 {[%clk 0:01:05]} 31. Kh2 {[%clk 0:01:13]}  Ba8 {[%clk 0:01:05]} 32. Qf2 {[%clk 0:01:01]}  Bc6 {[%clk 0:01:00]} 33. Rfe1 {[%clk 0:00:57]}  Ba8 {[%clk 0:00:59]} 34. Red1 {[%clk 0:00:29]}  Bc6 {[%clk 0:00:58]} 35. Kg1 {[%clk 0:00:27]}  Ba8 {[%clk 0:00:57]} 36. Bc2 {[%clk 0:00:27]}  Bc6 {[%clk 0:00:56]} 37. Nd2 {[%clk 0:00:25]}  Na5 {[%clk 0:00:52]} 38. Rf1 {[%clk 0:00:22]}  Ba8 {[%clk 0:00:51]} 39. Ng3 {[%clk 0:00:19]}  Bc6 {[%clk 0:00:47]} 40. Rfd1 {[%clk 0:00:16]}  Be8 {[%clk 0:00:44]} 41. Ndf1 {[%clk 0:00:16]}  Nc4 {[%clk 0:00:44]} 42. Bd3 {[%clk 0:00:16]}  R6b7 {[%clk 0:00:43]} 43. f5 {[%clk 0:00:11]}  Qd7 {[%clk 0:00:37]} 44. Bxc4 {[%clk 0:00:11]}  bxc4 {[%clk 0:00:37]} 45. Ne3 {[%clk 0:00:12]}  Bf7 {[%clk 0:00:36]} 46. Rd2 {[%clk 0:00:09]}  Qc7 {[%clk 0:00:29]} 47. Rbd1 {[%clk 0:00:09]}  Rb6 {[%clk 0:00:30]} 48. Ng4 {[%clk 0:00:05]}  R8b7 {[%clk 0:00:28]} 49. h4 {[%clk 0:00:05]}  Qb8 {[%clk 0:00:28]} 50. Qe3 {[%clk 0:00:02]}  Rc6 {[%clk 0:00:17]} 51. h5 {[%clk 0:00:03]}  d5 {[%clk 0:00:08]} 52. h6 {[%clk 0:00:02]}  gxh6 {[%clk 0:00:03]} 53. Qxh6 {[%clk 0:00:02]}  Ng8 {[%clk 0:00:03]} 54. Qh4 {[%clk 0:00:01]}  Rxb2 {[%clk 0:00:03]} 55. exd5 {[%clk 0:00:01]}  Rd6 {[%clk 0:00:03]} 56. Ne4 {[%clk 0:00:01]}  Rxd2 {[%clk 0:00:03]} 57. Rxd2 {[%clk 0:00:01]}  Qb1+ {[%clk 0:00:02]} 0-1


[Site "https://www.chess.com"]

[Event "Titled Tuesday Blitz June 28 Late 2022"]
[White "Howell, David W L"]
[Black "Gurevich, Dmitry"]
[WhiteFideId "410608"]
[BlackFideId "2000407"]
[WhiteElo "2559"]
[BlackElo "2506"]
[Result "1-0"]
[Round "10"]
[TimeControl "180+1"]
[Date "2022.06.28"]
[WhiteClock "0:00:09"]
[BlackClock "0:00:11"]

1. Na3 {[%clk 0:02:54]}  Nf6 {[%clk 0:02:58]} 2. f4 {[%clk 0:02:49]}  d5 {[%clk 0:02:57]} 3. Nf3 {[%clk 0:02:49]}  g6 {[%clk 0:02:57]} 4. b4 {[%clk 0:02:45]}  Bg7 {[%clk 0:02:56]} 5. Bb2 {[%clk 0:02:46]}  O-O {[%clk 0:02:56]} 6. e3 {[%clk 0:02:46]}  a5 {[%clk 0:02:56]} 7. b5 {[%clk 0:02:46]}  c5 {[%clk 0:02:54]} 8. bxc6 {[%clk 0:02:45]}  Nxc6 {[%clk 0:02:50]} 9. Rb1 {[%clk 0:02:45]}  Bf5 {[%clk 0:02:39]} 10. Nb5 {[%clk 0:02:39]}  Nb4 {[%clk 0:02:33]} 11. Nfd4 {[%clk 0:02:29]}  Bd7 {[%clk 0:02:31]} 12. c3 {[%clk 0:02:21]}  Nc6 {[%clk 0:02:29]} 13. Ba3 {[%clk 0:02:21]}  Re8 {[%clk 0:02:27]} 14. Be2 {[%clk 0:02:20]}  Bf5 {[%clk 0:02:25]} 15. Nxf5 {[%clk 0:02:16]}  gxf5 {[%clk 0:02:24]} 16. O-O {[%clk 0:02:12]}  a4 {[%clk 0:02:22]} 17. Kh1 {[%clk 0:02:01]}  Na5 {[%clk 0:02:14]} 18. Bc5 {[%clk 0:01:49]}  Nc4 {[%clk 0:02:06]} 19. Bd4 {[%clk 0:01:44]}  e6 {[%clk 0:02:03]} 20. g4 {[%clk 0:01:36]}  fxg4 {[%clk 0:02:02]} 21. Bxg4 {[%clk 0:01:10]}  Kh8 {[%clk 0:02:00]} 22. Rg1 {[%clk 0:01:05]}  Rg8 {[%clk 0:01:58]} 23. Bf3 {[%clk 0:01:02]}  a3 {[%clk 0:01:44]} 24. d3 {[%clk 0:00:56]}  Nb2 {[%clk 0:01:30]} 25. Qe2 {[%clk 0:00:56]}  Qe7 {[%clk 0:01:22]} 26. Rg5 {[%clk 0:00:46]}  h6 {[%clk 0:01:12]} 27. Rg3 {[%clk 0:00:42]}  Nh7 {[%clk 0:01:11]} 28. Rxg7 {[%clk 0:00:36]}  Rxg7 {[%clk 0:01:11]} 29. Bxg7+ {[%clk 0:00:33]}  Kxg7 {[%clk 0:01:10]} 30. Rg1+ {[%clk 0:00:33]}  Kh8 {[%clk 0:01:10]} 31. Qg2 {[%clk 0:00:27]}  Qf6 {[%clk 0:00:47]} 32. Nd6 {[%clk 0:00:23]}  Nxd3 {[%clk 0:00:43]} 33. Bh5 {[%clk 0:00:23]}  Ng5 {[%clk 0:00:33]} 34. h4 {[%clk 0:00:18]}  Rg8 {[%clk 0:00:20]} 35. hxg5 {[%clk 0:00:16]}  hxg5 {[%clk 0:00:20]} 36. Nxf7+ {[%clk 0:00:15]}  Kh7 {[%clk 0:00:19]} 37. Nxg5+ {[%clk 0:00:14]}  Kh6 {[%clk 0:00:19]} 38. Be2 {[%clk 0:00:12]}  Rh8 {[%clk 0:00:12]} 39. Nf7+ {[%clk 0:00:09]}  Qxf7 {[%clk 0:00:11]} 40. Qh2+ {[%clk 0:00:09]} 1-0


[Site "https://www.chess.com"]

[Event "Titled Tuesday Blitz June 28 Late 2022"]
[White "Janaszak, Dawid"]
[Black "Rios Escobar, Adan"]
[WhiteFideId "1119206"]
[BlackFideId "3403645"]
[WhiteElo "2199"]
[BlackElo "2478"]
[Result "1/2-1/2"]
[Round "10"]
[TimeControl "180+1"]
[Date "2022.06.28"]
[WhiteClock "0:02:21"]
[BlackClock "0:01:44"]

1. d4 {[%clk 0:03:00]}  Nf6 {[%clk 0:02:59]} 2. Bf4 {[%clk 0:02:58]}  b6 {[%clk 0:02:58]} 3. Nf3 {[%clk 0:02:53]}  Bb7 {[%clk 0:02:58]} 4. e3 {[%clk 0:02:52]}  g6 {[%clk 0:02:58]} 5. h4 {[%clk 0:02:51]}  Bg7 {[%clk 0:02:53]} 6. Nbd2 {[%clk 0:02:50]}  d6 {[%clk 0:02:49]} 7. Bc4 {[%clk 0:02:49]}  e6 {[%clk 0:02:34]} 8. Qe2 {[%clk 0:02:47]}  Nbd7 {[%clk 0:02:30]} 9. O-O-O {[%clk 0:02:45]}  Qe7 {[%clk 0:02:23]} 10. Ba6 {[%clk 0:02:43]}  Bxa6 {[%clk 0:02:04]} 11. Qxa6 {[%clk 0:02:44]}  O-O {[%clk 0:02:00]} 12. h5 {[%clk 0:02:29]}  Nxh5 {[%clk 0:01:57]} 13. Bg5 {[%clk 0:02:26]}  Bf6 {[%clk 0:01:50]} 14. Bh6 {[%clk 0:02:26]}  Bg7 {[%clk 0:01:47]} 15. Bg5 {[%clk 0:02:25]}  Bf6 {[%clk 0:01:48]} 16. Bh6 {[%clk 0:02:25]}  Bg7 {[%clk 0:01:44]} 17. Bg5 {[%clk 0:02:21]} 1/2-1/2


[Site "https://www.chess.com"]

[Event "Titled Tuesday Blitz June 28 Late 2022"]
[White "Jobava, Baadur"]
[Black "Perske, Thore"]
[WhiteFideId "13601520"]
[BlackFideId "12902195"]
[WhiteElo "2617"]
[BlackElo "2315"]
[Result "0-1"]
[Round "10"]
[TimeControl "180+1"]
[Date "2022.06.28"]
[WhiteClock "0:02:14"]
[BlackClock "0:00:28"]

1. e4 {[%clk 0:03:00]}  e6 {[%clk 0:02:58]} 2. d4 {[%clk 0:03:00]}  d5 {[%clk 0:02:58]} 3. exd5 {[%clk 0:03:01]}  exd5 {[%clk 0:02:58]} 4. Nf3 {[%clk 0:03:01]}  Nc6 {[%clk 0:02:56]} 5. Bd3 {[%clk 0:03:02]}  Bg4 {[%clk 0:02:55]} 6. O-O {[%clk 0:03:01]}  Bd6 {[%clk 0:02:55]} 7. h3 {[%clk 0:03:00]}  Bh5 {[%clk 0:02:54]} 8. c3 {[%clk 0:02:59]}  Nge7 {[%clk 0:02:53]} 9. Nbd2 {[%clk 0:02:59]}  Qd7 {[%clk 0:02:53]} 10. a4 {[%clk 0:02:55]}  Bg6 {[%clk 0:02:46]} 11. Qc2 {[%clk 0:02:52]}  Bxd3 {[%clk 0:02:42]} 12. Qxd3 {[%clk 0:02:53]}  Qf5 {[%clk 0:02:39]} 13. Qxf5 {[%clk 0:02:53]}  Nxf5 {[%clk 0:02:39]} 14. g4 {[%clk 0:02:49]}  Nfe7 {[%clk 0:02:38]} 15. Re1 {[%clk 0:02:49]}  f6 {[%clk 0:02:37]} 16. Nf1 {[%clk 0:02:49]}  Kf7 {[%clk 0:02:17]} 17. Kg2 {[%clk 0:02:49]}  h5 {[%clk 0:02:12]} 18. b4 {[%clk 0:02:42]}  hxg4 {[%clk 0:02:11]} 19. hxg4 {[%clk 0:02:43]}  Ng6 {[%clk 0:02:06]} 20. Ng3 {[%clk 0:02:39]}  Bxg3 {[%clk 0:01:46]} 21. fxg3 {[%clk 0:02:40]}  Nce7 {[%clk 0:01:39]} 22. b5 {[%clk 0:02:37]}  Nc8 {[%clk 0:01:39]} 23. Ba3 {[%clk 0:02:35]}  Nb6 {[%clk 0:01:40]} 24. a5 {[%clk 0:02:26]}  Nc4 {[%clk 0:01:39]} 25. a6 {[%clk 0:02:27]}  bxa6 {[%clk 0:01:34]} 26. bxa6 {[%clk 0:02:27]}  Rab8 {[%clk 0:01:28]} 27. Re2 {[%clk 0:02:21]}  Rb3 {[%clk 0:01:24]} 28. Bc5 {[%clk 0:02:20]}  Rxc3 {[%clk 0:01:17]} 29. Ng5+ {[%clk 0:02:20]}  fxg5 {[%clk 0:01:14]} 30. Rf1+ {[%clk 0:02:19]}  Nf4+ {[%clk 0:00:42]} 31. gxf4 {[%clk 0:02:20]}  Ne3+ {[%clk 0:00:41]} 32. Rxe3 {[%clk 0:02:21]}  Rxe3 {[%clk 0:00:42]} 33. Bxa7 {[%clk 0:02:21]}  Ra8 {[%clk 0:00:38]} 34. Bc5 {[%clk 0:02:20]}  Rxa6 {[%clk 0:00:37]} 35. fxg5+ {[%clk 0:02:17]}  Kg6 {[%clk 0:00:36]} 36. Rf2 {[%clk 0:02:18]}  Rae6 {[%clk 0:00:30]} 37. Kf1 {[%clk 0:02:14]}  Re1+ {[%clk 0:00:28]} 0-1


[Site "https://www.chess.com"]